bitfinex/quotes_SOLUSD_20240616
["timestamp","ask_amount","ask_price","bid_price","bid_amount"]
[1718560171645,27.8388,148.07,148.01,5.34]
[1718560171855,30.3376,148.07,148.01,5.34]
[1718560172175,50.3282,148.07,148.01,5.34]
[1718560172349,40.333,148.07,148.01,5.34]
[1718560172550,20.0,148.07,148.02,5.34]
[1718560172763,16.2291,148.08,148.02,5.34]
[1718560173060,21.5691,148.08,148.02,5.34]
[1718560173571,18.7277,148.08,148.03,5.34]
[1718560174077,16.2291,148.08,148.03,5.34]
[1718560174254,7.03230594,148.1,147.99,0.17]
[1718560174255,9.53060594,148.1,148.01,3.3315]
[1718560174567,2.4984,148.09,148.04,5.34]
[1718560174965,12.8351,148.1,148.04,5.34]
[1718560175168,20.33,148.1,148.04,5.34]
[1718560175358,2.4985,148.09,148.04,5.34]
[1718560177260,30.3233,148.1,148.04,5.34]
[1718560177462,2.4984,148.09,148.04,5.34]
[1718560177977,7.8384,148.09,148.03,5.34]
[1718560178167,12.8353,148.09,148.03,5.34]
[1718560178476,12.8353,148.09,148.01,23.3315]
[1718560178477,7.496,148.08,148.01,23.3315]
[1718560178805,5.34,148.08,148.02,5.34]
[1718560182073,5.34,148.08,148.03,5.34]
[1718560182996,2.6683,148.1,148.03,5.34]
[1718560183297,5.34,148.09,148.03,5.34]
[1718560186698,2.4983,148.1,148.03,5.34]
[1718560186996,22.4983,148.1,148.03,5.34]
[1718560187197,22.4983,148.1,148.01,23.3315]
[1718560187495,22.4983,148.1,148.03,5.34]
[1718560187686,20.0,148.1,148.03,5.34]
[1718560187874,20.0,148.1,148.01,23.3315]
[1718560188076,20.0,148.1,148.03,5.34]
[1718560188679,5.34,148.1,148.04,5.34]
[1718560189199,25.34,148.11,148.05,5.34]
[1718560189898,20.0,148.11,148.02,0.17]
[1718560190104,22.94474092,148.12,148.06,5.34]
[1718560190309,15.9125,148.12,148.07,5.34]
[1718560192100,23.7504,148.12,148.06,5.34]
[1718560192411,5.34,148.11,148.05,5.34]
[1718560193087,21.2525,148.12,148.06,5.34]
[1718560194305,22.4776,148.15,148.07,5.34]
[1718560194609,22.4976,148.14,148.07,5.34]
[1718560194806,25.34,148.14,148.08,5.34]
[1718560195397,22.6108,148.16,148.08,5.34]
[1718560195717,32.8325,148.15,148.09,5.34]
[1718560195918,32.8325,148.15,148.08,5.34]
[1718560195919,5.34,148.14,148.08,5.34]
[1718560196603,22.4975,148.15,148.09,5.34]
[1718560196914,27.8375,148.15,148.09,5.34]
[1718560198485,20.0,148.15,148.09,5.34]
[1718560198721,25.34,148.15,148.09,5.34]
[1718560201209,20.0,148.15,148.09,5.34]
[1718560201417,25.34,148.15,148.09,5.34]
[1718560203215,32.8324,148.15,148.09,5.34]
[1718560203415,32.8323,148.15,148.09,5.34]
[1718560203918,25.34,148.15,148.09,5.34]
[1718560204802,27.8374,148.15,148.09,5.34]
[1718560204999,30.317,148.14,148.06,3.3315]
[1718560205213,5.34,148.13,148.07,5.34]
[1718560205618,5.34,148.12,148.03,7.74243296]
[1718560205807,5.34,148.12,148.02,3.3315]
[1718560205808,5.34,148.11,148.06,5.34]
[1718560206207,17.4871,148.11,148.02,3.3315]
[1718560206528,5.34,148.1,148.04,5.34]
[1718560207412,5.34,148.11,148.05,5.34]
[1718560208518,5.34,148.11,148.02,3.3315]
[1718560208699,5.34,148.11,148.05,5.34]
[1718560209024,16.5445,148.12,148.06,5.34]
[1718560209229,21.8845,148.12,148.06,5.34]
[1718560210410,16.5445,148.12,148.06,5.34]
[1718560210601,21.8845,148.12,148.06,5.34]
[1718560211924,7.493,148.14,148.03,0.17]
[1718560212127,20.0,148.13,148.08,5.34]
[1718560212508,5.34,148.15,148.09,5.34]
[1718560213002,25.34,148.14,148.09,5.34]
[1718560213325,20.0,148.14,148.09,5.34]
[1718560214112,22.4974,148.15,148.09,5.34]
[1718560214314,27.8374,148.15,148.09,5.34]
[1718560214616,2.4976,148.14,148.09,5.34]
[1718560214924,4.9953,148.14,148.09,5.34]
[1718560215096,2.4981,148.12,148.03,0.51]
[1718560215299,5.34,148.12,148.06,5.34]
[1718560215524,7.8379,148.13,148.07,5.34]
[1718560216028,2.4979,148.12,148.07,5.34]
[1718560216206,12.8334,148.13,148.07,5.34]
[1718560216410,7.8378,148.13,148.07,5.34]
[1718560216611,5.34,148.13,148.07,5.34]
[1718560216810,7.8378,148.13,148.07,5.34]
[1718560217216,12.8334,148.13,148.07,5.34]
[1718560217532,20.3268,148.13,148.07,5.34]
[1718560217704,5.34,148.13,148.07,5.34]
[1718560218011,7.8378,148.13,148.07,5.34]
[1718560218213,20.3268,148.13,148.04,0.17]
[1718560218411,20.3268,148.13,148.07,5.34]
[1718560218622,12.8334,148.13,148.07,5.34]
[1718560218831,7.8378,148.13,148.07,5.34]
[1718560219327,2.4981,148.11,148.03,0.17]
[1718560219501,12.8343,148.11,148.05,5.34]
[1718560219706,5.34,148.11,148.05,5.34]
[1718560221537,5.34,148.11,148.03,20.0]
[1718560221833,29.3792,148.11,148.05,5.34]
[1718560222021,5.34,148.1,148.04,5.34]
[1718560223121,5.34,148.1,148.02,23.3315]
[1718560223319,5.34,148.1,148.04,5.34]
[1718560224532,16.8845,148.11,147.99,7.74243296]
[1718560224731,5.34,148.07,147.97,15.94691962]
[1718560225056,5.34,148.07,148.01,5.34]
[1718560225543,2.4988,148.07,147.97,23.68935262]
[1718560225716,5.34,148.07,148.0,5.34]
[1718560225919,5.34,148.06,148.0,5.34]
[1718560226223,5.34,148.07,147.97,15.94691962]
[1718560226528,5.34,148.07,148.0,5.34]
[1718560226738,5.34,148.07,147.98,0.17]
[1718560227047,5.34,148.07,148.01,5.34]
[1718560228212,5.34,148.06,148.0,5.34]
[1718560228454,20.8215,148.06,148.0,5.34]
[1718560228625,20.8215,148.06,147.98,0.17]
[1718560228825,20.8215,148.06,147.99,5.34]
[1718560229544,20.8215,148.06,148.0,5.34]
[1718560229932,15.4815,148.06,148.01,5.34]
[1718560231121,5.34,148.05,147.99,5.34]
[1718560235456,5.34,148.04,147.98,5.34]
[1718560240059,25.34,148.03,147.95,0.36039091]
[1718560240235,5.34,148.02,147.96,5.34]
[1718560240864,5.34,148.02,147.95,0.36039091]
[1718560241039,5.34,148.02,147.96,5.34]
[1718560241631,5.34,148.02,147.95,0.36039091]
[1718560241838,5.34,148.02,147.96,5.34]
[1718560242461,25.34,148.03,147.97,5.34]
[1718560244759,5.34,148.02,147.95,0.36039091]
[1718560244964,5.34,148.02,147.96,5.34]
[1718560245132,5.34,148.02,147.95,0.36039091]
[1718560245331,5.34,148.02,147.96,5.34]
[1718560245576,5.34,148.02,147.95,0.36039091]
[1718560245777,5.34,148.02,147.96,5.34]
[1718560247656,20.0,148.03,147.95,0.36039091]
[1718560247657,25.34,148.03,147.97,5.34]
[1718560248252,20.0,148.03,147.98,5.34]
[1718560248464,25.34,148.05,147.99,5.34]
[1718560248671,15.4815,148.06,147.96,0.17]
[1718560248882,15.4815,148.06,148.01,5.34]
[1718560250063,15.4815,148.06,147.96,8.42243296]
[1718560250273,20.8215,148.06,148.0,5.34]
[1718560250951,23.3205,148.06,148.0,5.34]
[1718560251149,20.8215,148.06,148.0,5.34]
[1718560253247,15.4815,148.06,148.0,5.34]
[1718560253463,20.8215,148.06,148.0,5.34]
[1718560254976,20.8215,148.06,147.96,8.42243296]
[1718560255168,20.8215,148.06,148.0,5.34]
[1718560256168,23.3205,148.06,148.0,5.34]
[1718560256378,20.8215,148.06,148.0,5.34]
[1718560256572,23.3204,148.06,148.0,5.34]
[1718560256874,20.8215,148.06,148.0,5.34]
[1718560258474,15.4815,148.06,148.01,5.34]
[1718560261084,15.4815,148.06,147.98,21.36]
[1718560261261,7.495,148.1,148.04,5.34]
[1718560261262,15.2848,148.09,148.04,5.34]
[1718560261583,15.2848,148.09,148.0,0.17]
[1718560261763,2.4986,148.08,148.03,5.34]
[1718560262777,35.6159,148.09,148.03,5.34]
[1718560263183,28.1204,148.09,148.03,5.34]
[1718560263384,23.1234,148.09,148.03,5.34]
[1718560264184,20.6248,148.09,148.03,5.34]
[1718560264398,15.2848,148.09,148.03,5.34]
[1718560264693,20.6248,148.09,148.03,5.34]
[1718560265893,15.2848,148.09,148.03,5.34]
[1718560266101,20.6248,148.09,148.03,5.34]
[1718560267208,15.2848,148.09,148.04,5.34]
[1718560268678,17.7832,148.09,148.04,5.34]
[1718560269192,23.1232,148.09,148.03,5.34]
[1718560269588,20.6248,148.09,148.03,5.34]
[1718560271302,15.2848,148.09,148.04,5.34]
[1718560277491,15.2848,148.09,148.05,5.34]
[1718560279590,15.2848,148.09,148.06,5.34]
[1718560281723,15.2848,148.09,148.04,5.34]
[1718560282409,20.6248,148.09,148.03,5.34]
[1718560285024,20.6248,148.09,147.99,0.17]
[1718560285025,25.34,148.08,147.99,0.17]
[1718560285207,5.34,148.07,148.01,5.34]
[1718560287299,5.34,148.08,148.02,5.34]
[1718560291609,7.8387,148.08,147.99,0.51]
[1718560291925,15.8167,148.06,148.01,5.34]
[1718560292130,21.1567,148.06,148.0,5.34]
[1718560292332,21.1567,148.06,147.99,20.0]
[1718560292510,5.34,148.05,147.99,5.34]
[1718560294203,5.34,148.05,148.0,5.34]
[1718560294632,5.34,148.05,147.98,20.0]
[1718560294812,5.34,148.05,148.0,5.34]
[1718560295627,21.1567,148.06,148.0,5.34]
[1718560299241,23.6556,148.06,148.0,5.34]
[1718560299536,23.6556,148.06,147.96,0.17]
[1718560299537,32.8376,148.05,147.96,0.17]
[1718560299712,32.8376,148.05,147.97,5.34]
[1718560299713,5.34,148.03,147.97,5.34]
[1718560301524,22.4993,148.05,147.97,5.34]
[1718560301731,5.34,148.03,147.97,5.34]
[1718560303012,5.34,148.03,147.98,5.34]
[1718560303649,5.34,148.03,147.96,20.0]
[1718560303820,5.34,148.03,147.98,5.34]
[1718560306026,5.34,148.03,147.95,20.36039091]
[1718560306345,20.0,148.05,147.96,0.17]
[1718560306537,25.34,148.05,147.96,0.68]
[1718560306740,5.34,148.04,147.99,5.34]
[1718560306921,20.0,148.05,147.99,5.34]
[1718560306922,25.34,148.05,147.99,5.34]
[1718560310230,5.34,148.04,147.99,5.34]
[1718560311043,20.0,148.05,147.99,5.34]
[1718560311241,5.34,148.04,147.99,5.34]
[1718560312951,20.0,148.05,147.99,5.34]
[1718560313125,25.34,148.05,147.99,5.34]
[1718560314253,27.8391,148.05,147.99,5.34]
[1718560314961,25.34,148.05,148.0,5.34]
[1718560315248,20.0,148.05,148.0,5.34]
[1718560317037,18.3157,148.06,148.0,5.34]
[1718560317239,15.8167,148.06,148.03,5.34]
[1718560318157,15.8167,148.06,148.02,5.34]
[1718560319844,15.8167,148.06,148.03,5.34]
[1718560320747,15.0901,148.1,148.04,5.34]
[1718560321055,15.0901,148.1,148.0,0.17]
[1718560321056,27.8265,148.09,148.0,0.17]
[1718560321360,20.331,148.09,148.03,5.34]
[1718560321547,12.8356,148.09,148.03,5.34]
[1718560321743,2.4986,148.08,148.0,0.17]
[1718560322051,7.4957,148.09,148.03,5.34]
[1718560322755,2.4986,148.08,148.03,5.34]
[1718560323265,2.4986,148.08,148.02,5.34]
[1718560323763,24.9851,148.09,148.02,5.34]
[1718560324067,2.4985,148.09,148.03,5.34]
[1718560324373,27.4954,148.09,148.03,5.34]
[1718560325955,22.4985,148.09,148.03,5.34]
[1718560326272,44.985,148.09,148.02,5.34]
[1718560326565,2.4986,148.08,148.02,5.34]
[1718560327163,44.9849,148.09,148.02,5.34]
[1718560328066,27.4955,148.09,148.02,5.34]
[1718560328362,22.4985,148.09,148.02,5.34]
[1718560328563,20.0,148.09,148.02,5.34]
[1718560329664,20.0,148.09,148.03,5.34]
[1718560331265,20.0,148.09,148.04,5.34]
[1718560332640,20.0,148.09,148.0,0.17]
[1718560332641,22.4985,148.09,148.03,5.34]
[1718560332861,27.8385,148.09,148.03,5.34]
[1718560333065,5.34,148.08,148.02,5.34]
[1718560333368,7.8387,148.08,148.02,5.34]
[1718560333970,12.836,148.08,148.02,5.34]
[1718560334552,7.8387,148.08,148.02,5.34]
[1718560334760,2.4988,148.07,148.02,5.34]
[1718560334967,17.8377,148.07,147.99,20.0]
[1718560335145,15.3389,148.07,148.02,5.34]
[1718560336254,15.3389,148.07,148.03,5.34]
[1718560336656,15.3389,148.07,148.02,5.34]
[1718560337570,15.3389,148.07,147.99,20.0]
[1718560337571,21.7932,148.07,147.99,20.0]
[1718560337744,25.34,148.06,147.94,6.5183]
[1718560337945,25.34,148.06,147.95,0.36039091]
[1718560337946,5.34,148.05,147.95,0.36039091]
[1718560338151,5.34,148.05,147.99,5.34]
[1718560338969,5.34,148.05,147.95,0.36039091]
[1718560339278,25.34,148.06,148.0,5.34]
[1718560339452,27.839,148.06,148.0,5.34]
[1718560339764,32.8369,148.06,148.0,5.34]
[1718560340171,7.8391,148.05,147.95,0.36039091]
[1718560340392,15.3389,148.03,147.95,20.36039091]
[1718560340588,15.3389,148.03,147.98,5.34]
[1718560341050,15.3389,148.03,147.95,0.36039091]
[1718560341257,15.3389,148.03,147.98,5.34]
[1718560341568,20.6789,148.03,147.98,5.34]
[1718560341753,20.6789,148.03,147.97,5.34]
[1718560341954,20.6789,148.03,147.95,0.36039091]
[1718560342178,20.6789,148.03,147.97,5.34]
[1718560342368,20.6789,148.03,147.95,0.36039091]
[1718560342555,27.1332,148.03,147.97,5.34]
[1718560346688,29.6327,148.03,147.95,0.36039091]
[1718560346869,29.6327,148.03,147.97,5.34]
[1718560347275,5.34,148.02,147.97,5.34]
[1718560347691,5.34,148.02,147.95,0.36039091]
[1718560347905,5.34,148.02,147.97,5.34]
[1718560351975,5.34,148.02,147.95,0.36039091]
[1718560352294,5.34,148.02,147.96,5.34]
[1718560353101,5.34,148.01,147.95,0.36039091]
[1718560353292,5.34,148.01,147.95,5.70039091]
[1718560354594,5.34,148.0,147.95,0.36039091]
[1718560358075,16.3988,148.01,147.95,5.70039091]
[1718560359396,16.3988,148.01,147.96,5.34]
[1718560360186,16.3988,148.01,147.97,5.34]
[1718560362485,16.3988,148.01,147.95,0.36039091]
[1718560362694,16.3988,148.01,147.96,5.34]
[1718560364516,16.3988,148.01,147.95,0.36039091]
[1718560364817,16.3988,148.01,147.96,5.34]
[1718560367720,16.097739,148.01,147.96,5.34]
[1718560369004,16.097739,148.01,147.97,5.34]
[1718560370844,16.097739,148.01,147.96,5.34]
[1718560375227,16.097739,148.01,147.95,0.36039091]
[1718560375228,5.34,148.0,147.95,0.36039091]
[1718560376919,5.34,148.0,147.95,5.70039091]
[1718560377639,16.097739,148.01,147.95,5.70039091]
[1718560380640,16.097739,148.01,147.96,5.34]
[1718560385134,21.437739,148.01,147.96,5.34]
[1718560387237,16.097739,148.01,147.96,5.34]
[1718560392854,18.597539,148.01,147.96,5.34]
[1718560393156,16.097739,148.01,147.96,5.34]
[1718560394363,16.097739,148.01,147.97,5.34]
[1718560394562,16.097739,148.01,147.98,5.34]
[1718560394853,16.097739,148.01,147.99,5.34]
[1718560396631,16.097739,148.01,147.98,5.34]
[1718560397242,16.097739,148.01,147.95,0.36039091]
[1718560397439,16.097739,148.01,147.98,5.34]
[1718560400165,16.097739,148.01,147.99,5.34]
[1718560400943,15.2624,148.05,148.0,5.34]
[1718560401168,15.2624,148.05,147.96,0.51]
[1718560401169,15.2624,148.05,148.01,5.34]
[1718560401640,15.2624,148.05,147.98,5.34]
[1718560401845,15.2624,148.05,148.02,5.34]
[1718560406255,15.2624,148.05,147.99,0.68]
[1718560406256,15.2624,148.05,148.01,5.34]
[1718560409350,15.2624,148.05,148.02,5.34]
[1718560410844,15.2624,148.05,147.99,0.68]
[1718560411171,15.2624,148.05,147.99,22.03091547]
[1718560411470,15.2624,148.05,148.04,5.34]
[1718560413467,15.2624,148.05,148.03,5.34]
[1718560413846,15.2624,148.05,147.99,20.34]
[1718560414054,15.2624,148.05,148.0,5.34]
[1718560415158,15.2624,148.05,147.95,10.24669535]
[1718560415159,20.6024,148.05,147.95,10.24669535]
[1718560415462,20.6024,148.05,148.0,5.34]
[1718560415771,23.1015,148.05,148.0,5.34]
[1718560416850,23.1015,148.05,147.99,5.34]
[1718560417058,20.6024,148.05,147.99,5.34]
[1718560417984,15.2624,148.05,147.99,5.34]
[1718560418149,20.6024,148.05,147.99,5.34]
[1718560418344,20.57238,148.05,147.99,5.34]
[1718560419080,23.07148,148.05,147.99,5.34]
[1718560419263,5.34,148.03,147.97,5.34]
[1718560419772,5.34,148.03,147.95,0.36039091]
[1718560419955,5.34,148.02,147.97,5.34]
[1718560420571,5.34,148.02,147.95,0.36039091]
[1718560420765,5.34,148.02,147.96,5.34]
[1718560420970,5.34,148.02,147.95,0.36039091]
[1718560420971,5.34,148.02,147.97,5.34]
[1718560421348,15.0169,148.01,147.97,5.34]
[1718560426665,15.0169,148.01,147.95,0.36039091]
[1718560426981,15.0169,148.01,147.96,5.34]
[1718560427154,15.0169,148.01,147.95,0.36039091]
[1718560427155,20.3569,148.01,147.95,5.70039091]
[1718560428352,20.3569,148.01,147.95,0.36039091]
[1718560428577,20.3569,148.01,147.95,5.70039091]
[1718560429691,6.4582,148.0,147.95,0.36039091]
[1718560430055,6.4582,148.0,147.95,5.70039091]
[1718560430982,6.4582,148.0,147.95,0.36039091]
[1718560431306,6.4582,148.0,147.95,5.70039091]
[1718560431473,6.4582,148.0,147.95,0.36039091]
[1718560431875,8.9582,148.0,147.95,0.36039091]
[1718560432811,6.4582,148.0,147.95,0.36039091]
[1718560433991,8.9582,148.0,147.95,0.36039091]
[1718560434495,6.4582,148.0,147.95,0.36039091]
[1718560434699,8.9582,148.0,147.95,0.36039091]
[1718560435999,6.4582,148.0,147.95,0.36039091]
[1718560436377,8.9582,148.0,147.95,0.36039091]
[1718560436908,13.9582,148.0,147.95,0.36039091]
[1718560437230,8.9582,148.0,147.95,0.36039091]
[1718560437401,13.9582,148.0,147.95,0.36039091]
[1718560438702,5.34,147.99,147.95,0.36039091]
[1718560440516,11.7982,148.0,147.95,0.36039091]
[1718560441206,14.2982,148.0,147.95,0.36039091]
[1718560442217,11.7982,148.0,147.95,0.36039091]
[1718560442382,14.2982,148.0,147.95,0.36039091]
[1718560442803,16.2326,147.98,147.95,0.36039091]
[1718560443315,5.34,147.97,147.95,0.36039091]
[1718560443510,5.34,147.96,147.95,0.36039091]
[1718560443688,5.34,147.97,147.95,0.36039091]
[1718560447388,5.34,147.96,147.87,0.8444931]
[1718560447591,5.34,147.95,147.89,5.34]
[1718560448326,5.34,147.94,147.89,5.34]
[1718560448501,20.8032,147.94,147.89,5.34]
[1718560449220,15.4632,147.94,147.89,5.34]
[1718560449592,20.8032,147.94,147.88,5.34]
[1718560450213,5.34,147.93,147.88,5.34]
[1718560451613,11.6967,147.93,147.87,0.8444931]
[1718560451800,5.34,147.92,147.87,0.8444931]
[1718560452300,20.8032,147.91,147.87,0.8444931]
[1718560452507,5.34,147.9,147.87,0.8444931]
[1718560453229,5.34,147.89,147.87,0.8444931]
[1718560458223,7.5052,147.9,147.87,0.8444931]
[1718560458535,20.0,147.89,147.87,0.8444931]
[1718560459029,27.5052,147.9,147.87,0.8444931]
[1718560459205,35.0104,147.9,147.87,0.8444931]
[1718560459405,7.5057,147.89,147.87,0.8444931]
[1718560459622,20.0,147.88,147.87,0.8444931]
[1718560460542,20.0,147.88,147.87,3.3465931]
[1718560460830,15.4632,147.86,147.79,20.0]
[1718560461032,15.4632,147.86,147.8,5.34]
[1718560461218,15.4632,147.86,147.73,7.74243296]
[1718560461219,5.34,147.82,147.76,5.34]
[1718560461414,29.1993,147.85,147.76,5.34]
[1718560461728,5.34,147.84,147.78,5.34]
[1718560462038,26.3567,147.85,147.78,3.84]
[1718560462238,5.34,147.84,147.78,3.84]
[1718560463127,6.3567,147.85,147.75,0.17]
[1718560463425,6.3567,147.85,147.75,20.68]
[1718560463926,6.3567,147.85,147.8,5.34]
[1718560464819,11.6967,147.85,147.8,5.34]
[1718560465525,11.6967,147.85,147.75,20.68]
[1718560465731,11.6967,147.85,147.79,5.34]
[1718560466117,11.6967,147.85,147.75,20.51]
[1718560466322,11.6967,147.85,147.79,5.34]
[1718560466621,11.6967,147.85,147.78,5.34]
[1718560466622,5.34,147.84,147.78,5.34]
[1718560467537,11.6967,147.85,147.79,5.34]
[1718560469736,14.1992,147.85,147.75,20.51]
[1718560469928,5.34,147.84,147.78,5.34]
[1718560479351,5.34,147.83,147.77,5.34]
[1718560481150,15.6633,147.82,147.77,5.34]
[1718560482442,15.6633,147.82,147.75,20.0]
[1718560482753,15.6633,147.82,147.77,5.34]
[1718560483128,15.6633,147.82,147.73,20.0]
[1718560483355,15.6633,147.82,147.74,0.51]
[1718560483555,21.0033,147.82,147.76,5.34]
[1718560484257,15.6633,147.82,147.74,0.51]
[1718560484437,15.6633,147.82,147.77,5.34]
[1718560485746,15.6633,147.82,147.72,7.1214212]
[1718560485747,5.34,147.79,147.72,0.8444931]
[1718560485939,5.34,147.77,147.72,0.8444931]
[1718560486253,2.5035,147.79,147.72,0.8444931]
[1718560486254,22.4559,147.76,147.72,0.8444931]
[1718560486965,22.4559,147.76,147.72,6.1844931]
[1718560487130,22.4559,147.76,147.72,0.8444931]
[1718560487560,27.7959,147.76,147.72,0.8444931]
[1718560487760,22.4559,147.76,147.72,0.8444931]
[1718560488143,24.9599,147.76,147.72,0.8444931]
[1718560488352,5.34,147.75,147.72,0.8444931]
[1718560488663,27.7959,147.76,147.72,0.8444931]
[1718560490856,30.2999,147.76,147.72,0.8444931]
[1718560491056,27.7959,147.76,147.72,0.8444931]
[1718560491240,5.51,147.75,147.72,0.8444931]
[1718560491444,5.34,147.74,147.72,0.8444931]
[1718560494769,22.4559,147.76,147.72,0.8444931]
[1718560495069,27.7959,147.76,147.72,0.8444931]
[1718560495266,22.4559,147.76,147.72,0.8444931]
[1718560497673,22.4559,147.76,147.72,6.1844931]
[1718560498366,22.4559,147.76,147.72,0.8444931]
[1718560499673,22.61060217,147.8,147.72,0.8444931]
[1718560499970,20.9192,147.8,147.74,5.34]
[1718560501467,20.0,147.79,147.74,5.34]
[1718560501678,15.5792,147.8,147.74,5.34]
[1718560501870,15.5792,147.8,147.72,0.8444931]
[1718560501871,15.5792,147.8,147.75,5.34]
[1718560502089,15.5792,147.8,147.76,5.34]
[1718560503768,15.5792,147.8,147.75,5.34]
[1718560504754,15.5792,147.8,147.76,5.34]
[1718560505370,15.91,147.84,147.76,5.34]
[1718560505585,20.0,147.83,147.78,5.34]
[1718560505797,15.91,147.84,147.78,5.34]
[1718560506093,21.25,147.84,147.78,5.34]
[1718560506506,23.7527,147.84,147.78,5.34]
[1718560507271,21.25,147.84,147.78,5.34]
[1718560507472,15.91,147.84,147.78,5.34]
[1718560507970,21.25,147.84,147.78,5.34]
[1718560509103,15.91,147.84,147.78,5.34]
[1718560509318,23.7527,147.84,147.78,5.34]
[1718560509496,21.25,147.84,147.78,5.34]
[1718560509699,15.91,147.84,147.78,5.34]
[1718560510024,21.25,147.84,147.78,5.34]
[1718560511127,36.2662,147.84,147.78,5.34]
[1718560511326,5.34,147.83,147.77,5.34]
[1718560513091,15.91,147.84,147.77,5.34]
[1718560513319,21.25,147.84,147.78,5.34]
[1718560514219,21.25,147.84,147.77,5.34]
[1718560514911,28.7581,147.84,147.75,7.3696]
[1718560515114,28.7581,147.84,147.78,5.34]
[1718560515413,5.34,147.83,147.77,5.34]
[1718560522421,21.25,147.84,147.78,5.34]
[1718560523008,2.5029,147.83,147.74,0.51]
[1718560523236,12.8486,147.83,147.77,5.34]
[1718560523533,5.34,147.83,147.77,5.34]
[1718560524212,5.34,147.83,147.78,5.34]
[1718560525032,18.4128,147.84,147.78,5.34]
[1718560525033,23.7528,147.84,147.78,5.34]
[1718560525730,18.4128,147.84,147.78,5.34]
[1718560526038,21.25,147.84,147.78,5.34]
[1718560526331,23.7527,147.84,147.74,0.51]
[1718560526533,46.2771,147.84,147.74,0.51]
[1718560526702,46.2771,147.84,147.78,5.34]
[1718560527205,7.8429,147.83,147.77,5.34]
[1718560527405,5.34,147.83,147.77,5.34]
[1718560528749,5.34,147.83,147.74,0.51]
[1718560529239,5.34,147.83,147.77,5.34]
[1718560529938,5.34,147.81,147.72,8.2140931]
[1718560530229,2.5035,147.79,147.73,5.34]
[1718560530464,12.8512,147.78,147.72,6.1844931]
[1718560530736,7.8437,147.78,147.72,6.1844931]
[1718560530940,5.34,147.78,147.72,6.1844931]
[1718560532133,15.0343,147.77,147.72,0.8444931]
[1718560532334,15.0343,147.77,147.72,6.1844931]
[1718560532637,15.0343,147.77,147.73,5.34]
[1718560533142,15.0343,147.77,147.72,0.8444931]
[1718560533454,15.0343,147.77,147.72,6.1844931]
[1718560537151,15.0343,147.77,147.73,5.34]
[1718560539332,15.0343,147.77,147.72,0.8444931]
[1718560539635,15.0343,147.77,147.72,6.1844931]
[1718560541768,21.5013,147.77,147.72,6.1844931]
[1718560542551,21.5013,147.77,147.73,5.34]